{"text_format":"3","workbook":"xlsx","n_sheets":1,"sheets":["Godišnji vremenski raspored"],"not_rendered":{"defined_names":2},"read":"whole","date_system":"1900"}

{"sheet":"Godišnji vremenski raspored","index":0,"n_rows":140,"n_cols":12,"rows_kept":140,"merged":[[0,1,1,11],[2,6,2,7],[2,8,2,9],[5,1,5,11],[15,3,15,4],[26,3,26,4],[37,3,37,4],[39,1,39,11],[49,3,49,4],[60,3,60,4],[71,3,71,4],[73,1,73,11],[83,3,83,4],[94,3,94,4],[105,3,105,4],[107,1,107,11],[117,3,117,4],[128,3,128,4],[139,3,139,4]]}
[null,"Vremenska kartica zaposlenog"]
[]
[null,"Ime zaposlenog:",null,"Adresa e-pošte:",null,null,"Ukupne vrednosti za godinu do današnjeg datuma:"]
[null,"Menadžer:",null,"Telefon:",null,null,"Broj časova \nredovnog rada:",{"$f":"SUM(C16,C27,C38,C50,C61,C72,C84,C95,C106,C118,C129,C140)","v":0},"Broj časova prekovremenog rada:",{"$f":"SUM(F16,F27,F38,F50,F61,F72,F84,F95,F106,F118,F129,F140)","v":0},"Ukupno:",{"$f":"SUM(H4,J4)","v":0}]
[]
[null,"Januar, februar, mart      Vremenska kartica zaposlenog: Dnevno, sedmično, mesečno, godišnje"]
[null,"Januar","1. sedmica","Prekovremeni rad","2. sedmica","Prekovremeni rad ","3. sedmica","Prekovremeni rad  ","4. sedmica","Prekovremeni rad   ","5. sedmica","Prekovremeni rad    "]
[null,"Ponedeljak"]
[null,"Utorak"]
[null,"Sreda"]
[null,"Četvrtak"]
[null,"Petak"]
[null,"Subota"]
[null,"Nedelja"]
[null,"Ukupan broj časova sedmično",{"$f":"SUBTOTAL(109,januar[1. sedmica])","v":0},{"$f":"SUBTOTAL(109,januar[Prekovremeni rad])","v":0},{"$f":"SUBTOTAL(109,januar[2. sedmica])","v":0},{"$f":"SUBTOTAL(109,januar[[Prekovremeni rad ]])","v":0},{"$f":"SUBTOTAL(109,januar[3. sedmica])","v":0},{"$f":"SUBTOTAL(109,januar[[Prekovremeni rad  ]])","v":0},{"$f":"SUBTOTAL(109,januar[4. sedmica])","v":0},{"$f":"SUBTOTAL(109,januar[[Prekovremeni rad   ]])","v":0},{"$f":"SUBTOTAL(109,januar[5. sedmica])","v":0},{"$f":"SUBTOTAL(109,januar[[Prekovremeni rad    ]])","v":0}]
[null,"Jan. ukupno: Redovno radno vreme",{"$f":"SUM(januar[[#Totals],[1. sedmica]],januar[[#Totals],[2. sedmica]],januar[[#Totals],[3. sedmica]],januar[[#Totals],[4. sedmica]],januar[[#Totals],[5. sedmica]])","v":0},"Jan. ukupno: Prekovremeni rad",null,{"$f":"SUM(januar[[#Totals],[Prekovremeni rad]],januar[[#Totals],[Prekovremeni rad ]],januar[[#Totals],[Prekovremeni rad  ]],januar[[#Totals],[Prekovremeni rad   ]],januar[[#Totals],[Prekovremeni rad    ]])","v":0}]
[]
[null,"februar","1. sedmica","Prekovremeni rad","2. sedmica","Prekovremeni rad ","3. sedmica","Prekovremeni rad  ","4. sedmica","Prekovremeni rad   ","5. sedmica","Prekovremeni rad    "]
[null,"Ponedeljak"]
[null,"Utorak"]
[null,"Sreda"]
[null,"Četvrtak"]
[null,"Petak"]
[null,"Subota"]
[null,"Nedelja"]
[null,"Ukupan broj časova sedmično",{"$f":"SUBTOTAL(109,februar[1. sedmica])","v":0},{"$f":"SUBTOTAL(109,februar[Prekovremeni rad])","v":0},{"$f":"SUBTOTAL(109,februar[2. sedmica])","v":0},{"$f":"SUBTOTAL(109,februar[[Prekovremeni rad ]])","v":0},{"$f":"SUBTOTAL(109,februar[3. sedmica])","v":0},{"$f":"SUBTOTAL(109,februar[[Prekovremeni rad  ]])","v":0},{"$f":"SUBTOTAL(109,februar[4. sedmica])","v":0},{"$f":"SUBTOTAL(109,februar[[Prekovremeni rad   ]])","v":0},{"$f":"SUBTOTAL(109,februar[5. sedmica])","v":0},{"$f":"SUBTOTAL(109,februar[[Prekovremeni rad    ]])","v":0}]
[null,"Feb. ukupno: Redovno radno vreme",{"$f":"SUM(februar[[#Totals],[1. sedmica]],februar[[#Totals],[2. sedmica]],februar[[#Totals],[3. sedmica]],februar[[#Totals],[4. sedmica]],februar[[#Totals],[5. sedmica]])","v":0},"Feb. ukupno: Prekovremeni rad",null,{"$f":"SUM(februar[[#Totals],[Prekovremeni rad]],februar[[#Totals],[Prekovremeni rad ]],februar[[#Totals],[Prekovremeni rad  ]],februar[[#Totals],[Prekovremeni rad   ]],februar[[#Totals],[Prekovremeni rad    ]])","v":0}]
[]
[null,"mart","1. sedmica","Prekovremeni rad","2. sedmica","Prekovremeni rad ","3. sedmica","Prekovremeni rad  ","4. sedmica","Prekovremeni rad   ","5. sedmica","Prekovremeni rad    "]
[null,"Ponedeljak"]
[null,"Utorak"]
[null,"Sreda"]
[null,"Četvrtak"]
[null,"Petak"]
[null,"Subota"]
[null,"Nedelja"]
[null,"Ukupan broj časova sedmično",{"$f":"SUBTOTAL(109,mart[1. sedmica])","v":0},{"$f":"SUBTOTAL(109,mart[Prekovremeni rad])","v":0},{"$f":"SUBTOTAL(109,mart[2. sedmica])","v":0},{"$f":"SUBTOTAL(109,mart[[Prekovremeni rad ]])","v":0},{"$f":"SUBTOTAL(109,mart[3. sedmica])","v":0},{"$f":"SUBTOTAL(109,mart[[Prekovremeni rad  ]])","v":0},{"$f":"SUBTOTAL(109,mart[4. sedmica])","v":0},{"$f":"SUBTOTAL(109,mart[[Prekovremeni rad   ]])","v":0},{"$f":"SUBTOTAL(109,mart[5. sedmica])","v":0},{"$f":"SUBTOTAL(109,mart[[Prekovremeni rad    ]])","v":0}]
[null,"Mar. ukupno: Redovno radno vreme",{"$f":"SUM(mart[[#Totals],[1. sedmica]],mart[[#Totals],[2. sedmica]],mart[[#Totals],[3. sedmica]],mart[[#Totals],[4. sedmica]],mart[[#Totals],[5. sedmica]])","v":0},"Mar. ukupno: Prekovremeni rad",null,{"$f":"SUM(mart[[#Totals],[Prekovremeni rad]],mart[[#Totals],[Prekovremeni rad ]],mart[[#Totals],[Prekovremeni rad  ]],mart[[#Totals],[Prekovremeni rad   ]],mart[[#Totals],[Prekovremeni rad    ]])","v":0}]
[]
[null,"April, maj, jun      Vremenska kartica zaposlenog: Dnevno, sedmično, mesečno, godišnje"]
[null,"April","1. sedmica","Prekovremeni rad","2. sedmica","Prekovremeni rad ","3. sedmica","Prekovremeni rad  ","4. sedmica","Prekovremeni rad   ","5. sedmica","Prekovremeni rad    "]
[null,"Ponedeljak"]
[null,"Utorak"]
[null,"Sreda"]
[null,"Četvrtak"]
[null,"Petak"]
[null,"Subota"]
[null,"Nedelja"]
[null,"Ukupan broj časova sedmično",{"$f":"SUBTOTAL(109,april[1. sedmica])","v":0},{"$f":"SUBTOTAL(109,april[Prekovremeni rad])","v":0},{"$f":"SUBTOTAL(109,april[2. sedmica])","v":0},{"$f":"SUBTOTAL(109,april[[Prekovremeni rad ]])","v":0},{"$f":"SUBTOTAL(109,april[3. sedmica])","v":0},{"$f":"SUBTOTAL(109,april[[Prekovremeni rad  ]])","v":0},{"$f":"SUBTOTAL(109,april[4. sedmica])","v":0},{"$f":"SUBTOTAL(109,april[[Prekovremeni rad   ]])","v":0},{"$f":"SUBTOTAL(109,april[5. sedmica])","v":0},{"$f":"SUBTOTAL(109,april[[Prekovremeni rad    ]])","v":0}]
[null,"Apr. ukupno: Redovno radno vreme",{"$f":"SUM(april[[#Totals],[1. sedmica]],april[[#Totals],[2. sedmica]],april[[#Totals],[3. sedmica]],april[[#Totals],[4. sedmica]],april[[#Totals],[5. sedmica]])","v":0},"Apr. ukupno: Prekovremeni rad",null,{"$f":"SUM(april[[#Totals],[Prekovremeni rad]],april[[#Totals],[Prekovremeni rad ]],april[[#Totals],[Prekovremeni rad  ]],april[[#Totals],[Prekovremeni rad   ]],april[[#Totals],[Prekovremeni rad    ]])","v":0}]
[]
[null,"maj","1. sedmica","Prekovremeni rad","2. sedmica","Prekovremeni rad ","3. sedmica","Prekovremeni rad  ","4. sedmica","Prekovremeni rad   ","5. sedmica","Prekovremeni rad    "]
[null,"Ponedeljak"]
[null,"Utorak"]
[null,"Sreda"]
[null,"Četvrtak"]
[null,"Petak"]
[null,"Subota"]
[null,"Nedelja"]
[null,"Ukupan broj časova sedmično",{"$f":"SUBTOTAL(109,maj[1. sedmica])","v":0},{"$f":"SUBTOTAL(109,maj[Prekovremeni rad])","v":0},{"$f":"SUBTOTAL(109,maj[2. sedmica])","v":0},{"$f":"SUBTOTAL(109,maj[[Prekovremeni rad ]])","v":0},{"$f":"SUBTOTAL(109,maj[3. sedmica])","v":0},{"$f":"SUBTOTAL(109,maj[[Prekovremeni rad  ]])","v":0},{"$f":"SUBTOTAL(109,maj[4. sedmica])","v":0},{"$f":"SUBTOTAL(109,maj[[Prekovremeni rad   ]])","v":0},{"$f":"SUBTOTAL(109,maj[5. sedmica])","v":0},{"$f":"SUBTOTAL(109,maj[[Prekovremeni rad    ]])","v":0}]
[null,"Maj ukupno: Redovno radno vreme",{"$f":"SUM(maj[[#Totals],[1. sedmica]],maj[[#Totals],[2. sedmica]],maj[[#Totals],[3. sedmica]],maj[[#Totals],[4. sedmica]],maj[[#Totals],[5. sedmica]])","v":0},"Maj ukupno: Prekovremeni rad",null,{"$f":"SUM(maj[[#Totals],[Prekovremeni rad]],maj[[#Totals],[Prekovremeni rad ]],maj[[#Totals],[Prekovremeni rad  ]],maj[[#Totals],[Prekovremeni rad   ]],maj[[#Totals],[Prekovremeni rad    ]])","v":0}]
[]
[null,"jun","1. sedmica","Prekovremeni rad","2. sedmica","Prekovremeni rad ","3. sedmica","Prekovremeni rad  ","4. sedmica","Prekovremeni rad   ","5. sedmica","Prekovremeni rad    "]
[null,"Ponedeljak"]
[null,"Utorak"]
[null,"Sreda"]
[null,"Četvrtak"]
[null,"Petak"]
[null,"Subota"]
[null,"Nedelja"]
[null,"Ukupan broj časova sedmično",{"$f":"SUBTOTAL(109,jun[1. sedmica])","v":0},{"$f":"SUBTOTAL(109,jun[Prekovremeni rad])","v":0},{"$f":"SUBTOTAL(109,jun[2. sedmica])","v":0},{"$f":"SUBTOTAL(109,jun[[Prekovremeni rad ]])","v":0},{"$f":"SUBTOTAL(109,jun[3. sedmica])","v":0},{"$f":"SUBTOTAL(109,jun[[Prekovremeni rad  ]])","v":0},{"$f":"SUBTOTAL(109,jun[4. sedmica])","v":0},{"$f":"SUBTOTAL(109,jun[[Prekovremeni rad   ]])","v":0},{"$f":"SUBTOTAL(109,jun[5. sedmica])","v":0},{"$f":"SUBTOTAL(109,jun[[Prekovremeni rad    ]])","v":0}]
[null,"Jun ukupno: Redovno radno vreme",{"$f":"SUM(jun[[#Totals],[1. sedmica]],jun[[#Totals],[2. sedmica]],jun[[#Totals],[3. sedmica]],jun[[#Totals],[4. sedmica]],jun[[#Totals],[5. sedmica]])","v":0},"Jun ukupno: Prekovremeni rad",null,{"$f":"SUM(jun[[#Totals],[Prekovremeni rad]],jun[[#Totals],[Prekovremeni rad ]],jun[[#Totals],[Prekovremeni rad  ]],jun[[#Totals],[Prekovremeni rad   ]],jun[[#Totals],[Prekovremeni rad    ]])","v":0}]
[]
[null,"Jul, avgust, septembar      Vremenska kartica zaposlenog: Dnevno, sedmično, mesečno, godišnje"]
[null,"Jul","1. sedmica","Prekovremeni rad","2. sedmica","Prekovremeni rad ","3. sedmica","Prekovremeni rad  ","4. sedmica","Prekovremeni rad   ","5. sedmica","Prekovremeni rad    "]
[null,"Ponedeljak"]
[null,"Utorak"]
[null,"Sreda"]
[null,"Četvrtak"]
[null,"Petak"]
[null,"Subota"]
[null,"Nedelja"]
[null,"Ukupan broj časova sedmično",{"$f":"SUBTOTAL(109,jul[1. sedmica])","v":0},{"$f":"SUBTOTAL(109,jul[Prekovremeni rad])","v":0},{"$f":"SUBTOTAL(109,jul[2. sedmica])","v":0},{"$f":"SUBTOTAL(109,jul[[Prekovremeni rad ]])","v":0},{"$f":"SUBTOTAL(109,jul[3. sedmica])","v":0},{"$f":"SUBTOTAL(109,jul[[Prekovremeni rad  ]])","v":0},{"$f":"SUBTOTAL(109,jul[4. sedmica])","v":0},{"$f":"SUBTOTAL(109,jul[[Prekovremeni rad   ]])","v":0},{"$f":"SUBTOTAL(109,jul[5. sedmica])","v":0},{"$f":"SUBTOTAL(109,jul[[Prekovremeni rad    ]])","v":0}]
[null,"Jul ukupno: Redovno radno vreme",{"$f":"SUM(jul[[#Totals],[1. sedmica]],jul[[#Totals],[2. sedmica]],jul[[#Totals],[3. sedmica]],jul[[#Totals],[4. sedmica]],jul[[#Totals],[5. sedmica]])","v":0},"Jul ukupno: Prekovremeni rad",null,{"$f":"SUM(jul[[#Totals],[Prekovremeni rad]],jul[[#Totals],[Prekovremeni rad ]],jul[[#Totals],[Prekovremeni rad  ]],jul[[#Totals],[Prekovremeni rad   ]],jul[[#Totals],[Prekovremeni rad    ]])","v":0}]
[]
[null,"avgust","1. sedmica","Prekovremeni rad","2. sedmica","Prekovremeni rad ","3. sedmica","Prekovremeni rad  ","4. sedmica","Prekovremeni rad   ","5. sedmica","Prekovremeni rad    "]
[null,"Ponedeljak"]
[null,"Utorak"]
[null,"Sreda"]
[null,"Četvrtak"]
[null,"Petak"]
[null,"Subota"]
[null,"Nedelja"]
[null,"Ukupan broj časova sedmično",{"$f":"SUBTOTAL(109,avgust[1. sedmica])","v":0},{"$f":"SUBTOTAL(109,avgust[Prekovremeni rad])","v":0},{"$f":"SUBTOTAL(109,avgust[2. sedmica])","v":0},{"$f":"SUBTOTAL(109,avgust[[Prekovremeni rad ]])","v":0},{"$f":"SUBTOTAL(109,avgust[3. sedmica])","v":0},{"$f":"SUBTOTAL(109,avgust[[Prekovremeni rad  ]])","v":0},{"$f":"SUBTOTAL(109,avgust[4. sedmica])","v":0},{"$f":"SUBTOTAL(109,avgust[[Prekovremeni rad   ]])","v":0},{"$f":"SUBTOTAL(109,avgust[5. sedmica])","v":0},{"$f":"SUBTOTAL(109,avgust[[Prekovremeni rad    ]])","v":0}]
[null,"Avg. ukupno: Redovno radno vreme",{"$f":"SUM(avgust[[#Totals],[1. sedmica]],avgust[[#Totals],[2. sedmica]],avgust[[#Totals],[3. sedmica]],avgust[[#Totals],[4. sedmica]],avgust[[#Totals],[5. sedmica]])","v":0},"Avg. ukupno: Prekovremeni rad",null,{"$f":"SUM(avgust[[#Totals],[Prekovremeni rad]],avgust[[#Totals],[Prekovremeni rad ]],avgust[[#Totals],[Prekovremeni rad  ]],avgust[[#Totals],[Prekovremeni rad   ]],avgust[[#Totals],[Prekovremeni rad    ]])","v":0}]
[]
[null,"septembar","1. sedmica","Prekovremeni rad","2. sedmica","Prekovremeni rad ","3. sedmica","Prekovremeni rad  ","4. sedmica","Prekovremeni rad   ","5. sedmica","Prekovremeni rad    "]
[null,"Ponedeljak"]
[null,"Utorak"]
[null,"Sreda"]
[null,"Četvrtak"]
[null,"Petak"]
[null,"Subota"]
[null,"Nedelja"]
[null,"Ukupan broj časova sedmično",{"$f":"SUBTOTAL(109,septembar[1. sedmica])","v":0},{"$f":"SUBTOTAL(109,septembar[Prekovremeni rad])","v":0},{"$f":"SUBTOTAL(109,septembar[2. sedmica])","v":0},{"$f":"SUBTOTAL(109,septembar[[Prekovremeni rad ]])","v":0},{"$f":"SUBTOTAL(109,septembar[3. sedmica])","v":0},{"$f":"SUBTOTAL(109,septembar[[Prekovremeni rad  ]])","v":0},{"$f":"SUBTOTAL(109,septembar[4. sedmica])","v":0},{"$f":"SUBTOTAL(109,septembar[[Prekovremeni rad   ]])","v":0},{"$f":"SUBTOTAL(109,septembar[5. sedmica])","v":0},{"$f":"SUBTOTAL(109,septembar[[Prekovremeni rad    ]])","v":0}]
[null,"Sept. ukupno: Redovno radno vreme",{"$f":"SUM(septembar[[#Totals],[1. sedmica]],septembar[[#Totals],[2. sedmica]],septembar[[#Totals],[3. sedmica]],septembar[[#Totals],[4. sedmica]],septembar[[#Totals],[5. sedmica]])","v":0},"Sept. ukupno: Prekovremeni rad",null,{"$f":"SUM(septembar[[#Totals],[Prekovremeni rad]],septembar[[#Totals],[Prekovremeni rad ]],septembar[[#Totals],[Prekovremeni rad  ]],septembar[[#Totals],[Prekovremeni rad   ]],septembar[[#Totals],[Prekovremeni rad    ]])","v":0}]
[]
[null,"Oktobar, novembar, decembar       Vremenska kartica zaposlenog: Dnevno, sedmično, mesečno, godišnje"]
[null,"Oktobar","1. sedmica","Prekovremeni rad","2. sedmica","Prekovremeni rad ","3. sedmica","Prekovremeni rad  ","4. sedmica","Prekovremeni rad   ","5. sedmica","Prekovremeni rad    "]
[null,"Ponedeljak"]
[null,"Utorak"]
[null,"Sreda"]
[null,"Četvrtak"]
[null,"Petak"]
[null,"Subota"]
[null,"Nedelja"]
[null,"Ukupan broj časova sedmično",{"$f":"SUBTOTAL(109,oktobar[1. sedmica])","v":0},{"$f":"SUBTOTAL(109,oktobar[Prekovremeni rad])","v":0},{"$f":"SUBTOTAL(109,oktobar[2. sedmica])","v":0},{"$f":"SUBTOTAL(109,oktobar[[Prekovremeni rad ]])","v":0},{"$f":"SUBTOTAL(109,oktobar[3. sedmica])","v":0},{"$f":"SUBTOTAL(109,oktobar[[Prekovremeni rad  ]])","v":0},{"$f":"SUBTOTAL(109,oktobar[4. sedmica])","v":0},{"$f":"SUBTOTAL(109,oktobar[[Prekovremeni rad   ]])","v":0},{"$f":"SUBTOTAL(109,oktobar[5. sedmica])","v":0},{"$f":"SUBTOTAL(109,oktobar[[Prekovremeni rad    ]])","v":0}]
[null,"Okt. ukupno: Redovno radno vreme",{"$f":"SUM(oktobar[[#Totals],[1. sedmica]],oktobar[[#Totals],[2. sedmica]],oktobar[[#Totals],[3. sedmica]],oktobar[[#Totals],[4. sedmica]],oktobar[[#Totals],[5. sedmica]])","v":0},"Okt. ukupno: Prekovremeni rad",null,{"$f":"SUM(oktobar[[#Totals],[Prekovremeni rad]],oktobar[[#Totals],[Prekovremeni rad ]],oktobar[[#Totals],[Prekovremeni rad  ]],oktobar[[#Totals],[Prekovremeni rad   ]],oktobar[[#Totals],[Prekovremeni rad    ]])","v":0}]
[]
[null,"novembar","1. sedmica","Prekovremeni rad","2. sedmica","Prekovremeni rad ","3. sedmica","Prekovremeni rad  ","4. sedmica","Prekovremeni rad   ","5. sedmica","Prekovremeni rad    "]
[null,"Ponedeljak"]
[null,"Utorak"]
[null,"Sreda"]
[null,"Četvrtak"]
[null,"Petak"]
[null,"Subota"]
[null,"Nedelja"]
[null,"Ukupan broj časova sedmično",{"$f":"SUBTOTAL(109,novembar[1. sedmica])","v":0},{"$f":"SUBTOTAL(109,novembar[Prekovremeni rad])","v":0},{"$f":"SUBTOTAL(109,novembar[2. sedmica])","v":0},{"$f":"SUBTOTAL(109,novembar[[Prekovremeni rad ]])","v":0},{"$f":"SUBTOTAL(109,novembar[3. sedmica])","v":0},{"$f":"SUBTOTAL(109,novembar[[Prekovremeni rad  ]])","v":0},{"$f":"SUBTOTAL(109,novembar[4. sedmica])","v":0},{"$f":"SUBTOTAL(109,novembar[[Prekovremeni rad   ]])","v":0},{"$f":"SUBTOTAL(109,novembar[5. sedmica])","v":0},{"$f":"SUBTOTAL(109,novembar[[Prekovremeni rad    ]])","v":0}]
[null,"Nov. ukupno: Redovno radno vreme",{"$f":"SUM(novembar[[#Totals],[1. sedmica]],novembar[[#Totals],[2. sedmica]],novembar[[#Totals],[3. sedmica]],novembar[[#Totals],[4. sedmica]],novembar[[#Totals],[5. sedmica]])","v":0},"Nov. ukupno: Prekovremeni rad",null,{"$f":"SUM(novembar[[#Totals],[Prekovremeni rad]],novembar[[#Totals],[Prekovremeni rad ]],novembar[[#Totals],[Prekovremeni rad  ]],novembar[[#Totals],[Prekovremeni rad   ]],novembar[[#Totals],[Prekovremeni rad    ]])","v":0}]
[]
[null,"decembar","1. sedmica","Prekovremeni rad","2. sedmica","Prekovremeni rad ","3. sedmica","Prekovremeni rad  ","4. sedmica","Prekovremeni rad   ","5. sedmica","Prekovremeni rad    "]
[null,"Ponedeljak"]
[null,"Utorak"]
[null,"Sreda"]
[null,"Četvrtak"]
[null,"Petak"]
[null,"Subota"]
[null,"Nedelja"]
[null,"Ukupan broj časova sedmično",{"$f":"SUBTOTAL(109,decembar[1. sedmica])","v":0},{"$f":"SUBTOTAL(109,decembar[Prekovremeni rad])","v":0},{"$f":"SUBTOTAL(109,decembar[2. sedmica])","v":0},{"$f":"SUBTOTAL(109,decembar[[Prekovremeni rad ]])","v":0},{"$f":"SUBTOTAL(109,decembar[3. sedmica])","v":0},{"$f":"SUBTOTAL(109,decembar[[Prekovremeni rad  ]])","v":0},{"$f":"SUBTOTAL(109,decembar[4. sedmica])","v":0},{"$f":"SUBTOTAL(109,decembar[[Prekovremeni rad   ]])","v":0},{"$f":"SUBTOTAL(109,decembar[5. sedmica])","v":0},{"$f":"SUBTOTAL(109,decembar[[Prekovremeni rad    ]])","v":0}]
[null,"Dec. ukupno: Redovno radno vreme",{"$f":"SUM(decembar[[#Totals],[1. sedmica]],decembar[[#Totals],[2. sedmica]],decembar[[#Totals],[3. sedmica]],decembar[[#Totals],[4. sedmica]],decembar[[#Totals],[5. sedmica]])","v":0},"Dec. ukupno: Prekovremeni rad",null,{"$f":"SUM(decembar[[#Totals],[Prekovremeni rad]],decembar[[#Totals],[Prekovremeni rad ]],decembar[[#Totals],[Prekovremeni rad  ]],decembar[[#Totals],[Prekovremeni rad   ]],decembar[[#Totals],[Prekovremeni rad    ]])","v":0}]